fUST/lending_fUST_20250910
["ID","MTS","AMOUNT","RATE_DAILY","PERIOD"]
[384521176,1757449853981,-190.75886297,0.00013972,2]
[384521178,1757449853990,-480.0,0.00013972,2]
[384521180,1757449854000,-480.0,0.00013972,2]
[384521182,1757449854009,-480.0,0.00013972,2]
[384521184,1757449854018,-480.0,0.00013972,2]
[384521186,1757449854028,-480.0,0.00013972,2]
[384521188,1757449854038,-650.02,0.00013972,2]
[384521190,1757449854047,-480.0,0.00013972,2]
[384521192,1757449854056,-1561.18,0.00013972,2]
[384521194,1757449854066,-480.0,0.00013972,2]
[384521196,1757449854076,-480.0,0.00013972,2]
[384521198,1757449854085,-2198.51,0.00013972,2]
[384521200,1757449854095,-480.0,0.00013972,2]
[384521202,1757449854105,-480.0,0.00013972,2]
[384521204,1757449854114,-595.05,0.00013972,2]
[384521206,1757449854124,-480.0,0.00013972,2]
[384521208,1757449854133,-151.0,0.00013972,2]
[384521210,1757449854142,-151.0,0.00013972,2]
[384521212,1757449854151,-1554.96,0.00013972,2]
[384521214,1757449854160,-480.0,0.00013972,2]
[384521216,1757449854170,-480.0,0.00013972,2]
[384521218,1757449854179,-480.0,0.00013972,2]
[384521220,1757449854188,-1000.0,0.00013972,2]
[384521222,1757449854197,-480.0,0.00013972,2]
[384521224,1757449854207,-634.32,0.00013972,2]
[384521226,1757449854216,-480.0,0.00013972,2]
[384521228,1757449854225,-480.0,0.00013972,2]
[384521230,1757449854235,-480.0,0.00013972,2]
[384521232,1757449854243,-480.0,0.00013972,2]
[384521234,1757449854252,-480.0,0.00013972,2]
[384521236,1757449854262,-480.0,0.00013972,2]
[384521238,1757449854271,-480.0,0.00013972,2]
[384521240,1757449854280,-480.0,0.00013972,2]
[384521242,1757449854290,-646.8,0.00013972,2]
[384521244,1757449854299,-151.0,0.00013972,2]
[384521246,1757449854308,-151.0,0.00013972,2]
[384521247,1757449854318,-480.0,0.00013972,2]
[384521249,1757449854327,-480.0,0.00013972,2]
[384521251,1757449854336,-151.0,0.00013972,2]
[384521253,1757449854345,-151.0,0.00013972,2]
[384521255,1757449854355,-480.0,0.00013972,2]
[384521257,1757449854364,-480.0,0.00013972,2]
[384521259,1757449854373,-578.16,0.00013972,2]
[384521262,1757449854383,-480.0,0.00013972,2]
[384521263,1757449854391,-480.0,0.00013972,2]
[384521266,1757449854402,-480.0,0.00013972,2]
[384521268,1757449854411,-480.0,0.00013972,2]
[384521269,1757449854421,-528.51,0.00013972,2]
[384521271,1757449854430,-1002.17,0.00013972,2]
[384521273,1757449854441,-480.0,0.00013972,2]
[384521275,1757449854450,-480.0,0.00013972,2]
[384521277,1757449854459,-480.0,0.00013972,2]
[384521279,1757449854468,-480.0,0.00013972,2]
[384521281,1757449854477,-480.0,0.00013972,2]
[384521283,1757449854487,-480.0,0.00013972,2]
[384521285,1757449854495,-480.0,0.00013972,2]
[384521287,1757449854505,-151.0,0.00013972,2]
[384521289,1757449854514,-184.8656637,0.00013972,2]
[384521291,1757449854523,-151.0,0.00013972,2]
[384521293,1757449854533,-407.05048966,0.00013972,2]
[384521295,1757449854542,-480.0,0.00013972,2]
[384521297,1757449854552,-480.0,0.00013972,2]
[384521299,1757449854561,-480.0,0.00013972,2]
[384521301,1757449854570,-480.0,0.00013972,2]
[384521303,1757449854580,-480.0,0.00013972,2]
[384521305,1757449854592,-480.0,0.00013972,2]
[384521307,1757449854601,-1772.11,0.00013972,2]
[384521309,1757449854611,-480.0,0.00013972,2]
[384521311,1757449854620,-480.0,0.00013972,2]
[384521313,1757449854629,-480.0,0.00013972,2]
[384521315,1757449854639,-480.0,0.00013972,2]
[384521317,1757449854649,-480.0,0.00013972,2]
[384521319,1757449854659,-1022.54,0.00013972,2]
[384521321,1757449854669,-486.87,0.00013972,2]
[384521323,1757449854679,-484.57100462,0.00013972,2]
[384521325,1757449854688,-480.0,0.00013972,2]
[384521327,1757449854697,-480.0,0.00013972,2]
[384521329,1757449854707,-480.0,0.00013972,2]
[384521331,1757449854716,-2034.54,0.00013972,2]
[384521333,1757449854725,-480.0,0.00013972,2]
[384521335,1757449854734,-610.67209308,0.00013972,2]
[384521337,1757449854743,-480.0,0.00013972,2]
[384521339,1757449854754,-482.14472547,0.00013972,2]
[384521341,1757449854764,-480.0,0.00013972,2]
[384521343,1757449854773,-480.0,0.00013972,2]
[384521345,1757449854783,-480.0,0.00013972,2]
[384521347,1757449854792,-698.54,0.00013972,2]
[384521349,1757449854802,-480.0,0.00013972,2]
[384521351,1757449854811,-811.59,0.00013972,2]
[384521353,1757449854820,-480.0,0.00013972,2]
[384521355,1757449854830,-480.0,0.00013972,2]
[384521357,1757449854840,-480.0,0.00013972,2]
[384521359,1757449854850,-480.0,0.00013972,2]
[384521361,1757449854859,-1453.702268,0.00013972,2]
[384521363,1757449854869,-480.0,0.00013972,2]
[384521365,1757449854878,-3020.48,0.00013972,2]
[384521367,1757449854888,-1453.702268,0.00013972,2]
[384521369,1757449854898,-480.0,0.00013972,2]
[384521372,1757449854907,-480.0,0.00013972,2]
[384521374,1757449854918,-1453.702268,0.00013972,2]
[384521376,1757449854928,-1453.702268,0.00013972,2]
[384521378,1757449854938,-220.2,0.00013972,2]
[384521380,1757449854947,-480.0,0.00013972,2]
[384521382,1757449854958,-500.0,0.00013973,2]
[384521383,1757449854968,-500.0,0.00013973,2]
[384521385,1757449854979,-501.24456951,0.00013973,2]
[384521387,1757449854989,-500.0,0.00013973,2]
[384521389,1757449854998,-500.0,0.00013973,2]
[384521392,1757449855008,-500.0,0.00013973,2]
[384521393,1757449855017,-500.0,0.00013973,2]
[384521395,1757449855026,-500.0,0.00013973,2]
[384521397,1757449855037,-500.0,0.00013973,2]
[384521399,1757449855047,-506.66654499,0.00013973,2]
[384521401,1757449855059,-500.0,0.00013973,2]
[384521404,1757449855068,-500.0,0.00013973,2]
[384521405,1757449855079,-500.08724029,0.00013973,2]
[384521407,1757449855089,-500.0,0.00013973,2]
[384521409,1757449855098,-500.0,0.00013973,2]
[384521412,1757449855107,-500.0,0.00013973,2]
[384521414,1757449855116,-624.65293445,0.00013973,2]
[384521416,1757449855126,-500.0,0.00013973,2]
[384521417,1757449855135,-500.0,0.00013973,2]
[384521420,1757449855144,-547.70706443,0.00013973,2]
[384521422,1757449855153,-500.0,0.00013973,2]
[384521424,1757449855162,-500.0,0.00013973,2]
[384521426,1757449855171,-174.37938163,0.00013973,2]
[384521428,1757449855180,-500.98645843,0.00013973,2]
[384521430,1757449855189,-500.0,0.00013973,2]
[384521432,1757449855198,-500.52912716,0.00013973,2]
[384521434,1757449855207,-500.54132393,0.00013973,2]
[384521436,1757449855216,-500.0,0.00013973,2]
[384521438,1757449855225,-500.0,0.00013973,2]
[384521440,1757449855233,-169.92801321,0.00013973,2]
[384521442,1757449855243,-500.42596079,0.00013973,2]
[384521444,1757449855252,-500.3650602,0.00013973,2]
[384521446,1757449855261,-500.0,0.00013973,2]
[384521448,1757449855270,-500.0,0.00013973,2]
[384521449,1757449855280,-500.0,0.00013973,2]
[384521452,1757449855290,-500.32943356,0.00013973,2]
[384521453,1757449855301,-531.80676789,0.00013973,2]
[384521456,1757449855310,-500.0,0.00013973,2]
[384521458,1757449855319,-209.50238746,0.00013973,2]
[384521460,1757449855328,-500.0,0.00013973,2]
[384521462,1757449855337,-163.11872495,0.00013973,2]
[384521464,1757449855347,-500.0,0.00013973,2]
[384521466,1757449855356,-500.4107148,0.00013973,2]
[384521468,1757449855365,-514.85413966,0.00013973,2]
[384521470,1757449855375,-500.0,0.00013973,2]
[384521472,1757449855384,-500.0,0.00013973,2]
[384521474,1757449855394,-500.36869374,0.00013973,2]
[384521476,1757449855403,-500.0,0.00013973,2]
[384521478,1757449855412,-160.64852455,0.00013973,2]
[384521480,1757449855422,-218.09491956,0.00013973,2]
[384521482,1757449855431,-500.0,0.00013973,2]
[384521484,1757449855440,-151.0,0.00013973,2]
[384521486,1757449855450,-151.0,0.00013973,2]
[384521488,1757449855459,-151.0,0.00013973,2]
[384521489,1757449855467,-151.0,0.00013973,2]
[384521491,1757449855476,-151.0,0.00013973,2]
[384521493,1757449855485,-787.931978,0.00013973,2]
[384521495,1757449855493,-787.931978,0.00013973,2]
[384521498,1757449855503,-787.931978,0.00013973,2]
[384521500,1757449855512,-787.931968,0.00013973,2]
[384521502,1757449855521,-100000.0,0.0001399,2]
[384521504,1757449855531,-151.0,0.0001399,2]
[384521506,1757449855539,-151.0,0.0001399,2]
[384521508,1757449855548,-225.169624,0.0001399,2]
[384521509,1757449855558,-225.169624,0.0001399,2]
[384521512,1757449855567,-225.169624,0.0001399,2]
[384521513,1757449855576,-225.169624,0.0001399,2]
[384521515,1757449855586,-151.0,0.0001399,2]
[384521517,1757449855599,-151.0,0.0001399,2]
[384521519,1757449855608,-151.0,0.0001399,2]
[384521521,1757449855617,-230.235628,0.0001399,2]
[384521524,1757449855627,-230.235628,0.0001399,2]
[384521525,1757449855637,-230.235628,0.0001399,2]
[384521527,1757449855646,-230.235628,0.0001399,2]
[384521529,1757449855655,-283.106688,0.0001399,2]
[384521531,1757449855665,-283.106688,0.0001399,2]
[384521533,1757449855675,-283.106688,0.0001399,2]
[384521536,1757449855685,-283.106688,0.0001399,2]
[384521538,1757449855694,-151.0,0.0001399,2]
[384521540,1757449855703,-178.368214,0.0001399,2]
[384521542,1757449855712,-151.0,0.0001399,2]
[384521543,1757449855721,-178.368214,0.0001399,2]
[384521545,1757449855730,-151.0,0.0001399,2]
[384521548,1757449855740,-178.368214,0.0001399,2]
[384521550,1757449855749,-178.368206,0.0001399,2]
[384521552,1757449855758,-151.0,0.0001399,2]
[384521554,1757449855767,-251.821172,0.0001399,2]
[384521556,1757449855776,-251.821172,0.0001399,2]
[384521558,1757449855786,-251.821172,0.0001399,2]
[384521560,1757449855795,-223.330451,0.0001399,2]
[384521562,1757449855805,-251.821172,0.0001399,2]
[384521564,1757449855814,-223.330451,0.0001399,2]
[384521566,1757449855823,-223.330451,0.0001399,2]
[384521568,1757449855832,-223.33046,0.0001399,2]
[384521570,1757449855842,-652.976066,0.0001399,2]
[384521572,1757449855851,-652.976066,0.0001399,2]
[384521574,1757449855860,-652.976066,0.0001399,2]
[384521576,1757449855869,-652.976074,0.0001399,2]
[384521578,1757449855878,-177.275066,0.0001399,2]
[384521580,1757449855887,-177.275066,0.0001399,2]
[384521593,1757449855998,-177.275066,0.0001399,2]
[384521595,1757449856008,-177.275074,0.0001399,2]
[384521597,1757449856018,-500.0,0.00014136,2]
[384521599,1757449856026,-500.0,0.00014221,2]
[384521601,1757449856036,-500.0,0.00014221,2]
[384521603,1757449856045,-1000.0,0.00014221,2]
[384521605,1757449856055,-1000.0,0.00014221,2]
[384521607,1757449856064,-500.0,0.00014221,2]
[384521609,1757449856073,-500.0,0.00014221,2]
[384521611,1757449856083,-500.0,0.00014221,2]
[384521613,1757449856093,-501.46562406,0.00014221,2]
[384521615,1757449856102,-1000.0,0.00014221,2]
[384521617,1757449856111,-1000.0,0.00014221,2]
[384521619,1757449856119,-366.93332035,0.00014221,2]
[384521621,1757449856128,-504.09211214,0.00014221,2]
[384521622,1757449856137,-1000.0,0.00014221,2]
[384521623,1757449856146,-1000.0,0.00014221,2]
[384521624,1757449856155,-500.0,0.00014221,2]
[384521625,1757449856164,-500.0,0.00014221,2]
[384521626,1757449856174,-1000.0,0.00014221,2]
[384521627,1757449856183,-1000.0,0.00014221,2]
[384521628,1757449856192,-992.53886774,0.00014221,2]
[384521629,1757449856201,-151.0,0.00014238,2]
[384521630,1757449856211,-1219.89,0.0001424,2]
[384521631,1757449856221,-480.0,0.0001424,2]
[384521632,1757449856230,-480.0,0.00014246,2]
[384521633,1757449856239,-480.0,0.00014246,2]
[384521634,1757449856249,-480.0,0.00014246,2]
[384521635,1757449856258,-480.0,0.00014246,2]
[384521636,1757449856268,-151.0,0.00014246,2]
[384521637,1757449856277,-480.0,0.00014246,2]
[384521638,1757449856286,-480.0,0.00014246,2]
[384521640,1757449856296,-480.0,0.00014246,2]
[384521642,1757449856305,-480.0,0.00014246,2]
[384521644,1757449856314,-480.0,0.00014246,2]
[384521646,1757449856325,-480.0,0.00014246,2]
[384521648,1757449856334,-480.0,0.00014246,2]
[384521650,1757449856343,-480.0,0.00014246,2]
[384521652,1757449856352,-480.0,0.00014246,2]
[384521654,1757449856361,-480.0,0.00014246,2]
[384521656,1757449856370,-488.17665519,0.00014246,2]
[384521658,1757449856379,-480.0,0.00014246,2]
[384521660,1757449856388,-480.0,0.00014246,2]
[384521662,1757449856398,-480.0,0.00014246,2]
[384521664,1757449856407,-573.65301586,0.00014246,2]
[384521666,1757449856416,-239.37,0.00014246,2]
[384521668,1757449856425,-480.0,0.00014246,2]
[384521670,1757449856434,-480.0,0.00014246,2]
[384521672,1757449856444,-480.0,0.00014246,2]
[384521674,1757449856453,-480.0,0.00014246,2]
[384521676,1757449856462,-480.0,0.00014246,2]
[384521678,1757449856471,-480.0,0.00014246,2]
[384521680,1757449856480,-625.34,0.00014246,2]
[384521682,1757449856490,-480.0,0.00014246,2]
[384521684,1757449856499,-151.0,0.00014246,2]
[384521686,1757449856508,-160.129615,0.00014246,2]
[384521688,1757449856517,-190.86631507,0.00014246,2]
[384521690,1757449856526,-480.0,0.00014246,2]
[384521692,1757449856536,-580.87,0.00014246,2]
[384521694,1757449856545,-594.72,0.00014246,2]
[384521696,1757449856554,-590.08,0.00014246,2]
[384521698,1757449856563,-480.0,0.00014246,2]
[384521700,1757449856572,-480.0,0.00014246,2]
[384521702,1757449856582,-480.0,0.00014246,2]
[384521704,1757449856596,-480.0,0.00014246,2]
[384521706,1757449856605,-225.169624,0.00014246,2]
[384521708,1757449856614,-225.169624,0.00014246,2]
[384521710,1757449856624,-225.169624,0.00014246,2]
[384521712,1757449856632,-225.169616,0.00014246,2]
[384521714,1757449856642,-480.0,0.00014246,2]
[384521716,1757449856652,-480.0,0.00014246,2]
[384521718,1757449856661,-480.0,0.00014246,2]
[384521720,1757449856670,-480.0,0.00014246,2]
[384521722,1757449856679,-480.0,0.00014246,2]
[384521724,1757449856688,-600.76,0.00014246,2]
[384521726,1757449856697,-480.0,0.00014246,2]
[384521728,1757449856706,-480.0,0.00014246,2]
[384521730,1757449856715,-480.0,0.00014246,2]
[384521732,1757449856725,-480.0,0.00014246,2]
[384521734,1757449856734,-480.0,0.00014246,2]
[384521736,1757449856743,-798.0,0.00014246,2]
[384521738,1757449856752,-480.0,0.00014246,2]
[384521740,1757449856761,-480.0,0.00014246,2]
[384521742,1757449856770,-431.83256565,0.00014246,2]
[384521744,1757449856779,-480.0,0.00014246,2]
[384521746,1757449856790,-480.0,0.00014246,2]
[384521748,1757449856800,-480.0,0.00014246,2]
[384521750,1757449856809,-282.40618693,0.00014246,2]
[384521752,1757449856818,-480.0,0.00014246,2]
[384521754,1757449856827,-480.0,0.00014246,2]
[384521756,1757449856837,-498.77978225,0.00014246,2]
[384521758,1757449856846,-239.62,0.00014246,2]
[384521760,1757449856855,-480.0,0.00014246,2]
[384521763,1757449856865,-510.04,0.00014246,2]
[384521765,1757449856874,-601.13,0.00014246,2]
[384521767,1757449856883,-480.0,0.00014246,2]
[384521768,1757449856893,-480.0,0.00014246,2]
[384521770,1757449856902,-480.0,0.00014246,2]
[384521773,1757449856912,-480.0,0.00014246,2]
[384521774,1757449856921,-480.0,0.00014246,2]
[384521776,1757449856930,-480.0,0.00014246,2]
[384521778,1757449856939,-480.0,0.00014246,2]
[384521781,1757449856949,-480.0,0.00014246,2]
[384521783,1757449856958,-519.43,0.00014246,2]
[384521785,1757449856968,-480.0,0.00014246,2]
[384521787,1757449856978,-480.0,0.00014246,2]
[384521789,1757449856987,-480.0,0.00014246,2]
[384521791,1757449856997,-480.0,0.00014246,2]
[384521793,1757449857006,-480.0,0.00014246,2]
[384521795,1757449857016,-490.75257519,0.00014246,2]
[384521797,1757449857026,-480.0,0.00014246,2]
[384521799,1757449857035,-480.0,0.00014246,2]
[384521801,1757449857045,-480.0,0.00014246,2]
[384521803,1757449857055,-480.0,0.00014246,2]
[384521805,1757449857064,-480.0,0.00014246,2]
[384521807,1757449857074,-480.0,0.00014246,2]
[384521809,1757449857083,-480.0,0.00014246,2]
[384521811,1757449857093,-480.0,0.00014246,2]
[384521813,1757449857102,-480.0,0.00014246,2]
[384521815,1757449857112,-480.0,0.00014246,2]
[384521817,1757449857121,-480.0,0.00014246,2]
[384521819,1757449857131,-1358.13,0.00014246,2]
[384521821,1757449857140,-7610.56,0.00014246,2]
[384521823,1757449857149,-480.0,0.00014246,2]
[384521825,1757449857159,-480.0,0.00014246,2]
[384521827,1757449857168,-480.0,0.00014246,2]
[384521829,1757449857178,-480.0,0.00014246,2]
[384521831,1757449857187,-480.0,0.00014246,2]
[384521833,1757449857197,-480.0,0.00014246,2]
[384521835,1757449857207,-480.0,0.00014246,2]
[384521837,1757449857217,-480.0,0.00014246,2]
[384521839,1757449857226,-480.0,0.00014246,2]
[384521841,1757449857235,-616.56,0.00014246,2]
[384521843,1757449857244,-480.0,0.00014246,2]
[384521845,1757449857254,-480.0,0.00014246,2]
[384521847,1757449857263,-2162.86,0.00014246,2]
[384521849,1757449857272,-719.29,0.00014246,2]
[384521851,1757449857281,-480.0,0.00014246,2]
[384521853,1757449857290,-480.0,0.00014246,2]
[384521855,1757449857299,-798.23,0.00014246,2]
[384521857,1757449857309,-480.0,0.00014246,2]
[384521859,1757449857318,-480.0,0.00014246,2]
[384521861,1757449857327,-480.0,0.00014246,2]
[384521863,1757449857337,-480.0,0.00014246,2]
[384521865,1757449857346,-480.0,0.00014246,2]
[384521867,1757449857355,-480.0,0.00014246,2]
[384521869,1757449857364,-480.0,0.00014246,2]
[384521871,1757449857374,-480.0,0.00014246,2]
[384521873,1757449857383,-1115.6,0.00014246,2]
[384521875,1757449857392,-814.84,0.00014246,2]
[384521877,1757449857401,-480.0,0.00014246,2]
[384521879,1757449857410,-4312.41,0.00014246,2]
[384521881,1757449857419,-480.0,0.00014246,2]
[384521883,1757449857428,-2540.43,0.00014246,2]
[384521885,1757449857437,-632.5,0.00014246,2]
[384521887,1757449857446,-480.0,0.00014246,2]
[384521889,1757449857456,-480.0,0.00014246,2]
[384521891,1757449857465,-480.0,0.00014246,2]
[384521893,1757449857474,-480.0,0.00014246,2]
[384521895,1757449857483,-2246.2,0.00014246,2]
[384521897,1757449857492,-480.0,0.00014246,2]
[384521899,1757449857502,-347.53,0.00014246,2]
[384521901,1757449857511,-1859.97,0.00014246,2]
[384521903,1757449857520,-1543.27,0.00014246,2]
[384521905,1757449857529,-176.76,0.00014246,2]
[384521907,1757449857539,-480.0,0.00014246,2]
[384521909,1757449857548,-480.0,0.00014246,2]
[384521911,1757449857557,-370.74,0.00014246,2]
[384521913,1757449857566,-2024.29,0.00014246,2]
[384521915,1757449857575,-480.0,0.00014246,2]
[384521917,1757449857585,-480.0,0.00014246,2]
[384521919,1757449857598,-480.0,0.00014246,2]
[384521921,1757449857607,-480.0,0.00014246,2]
[384521923,1757449857616,-480.0,0.00014246,2]
[384521925,1757449857625,-337.15,0.00014246,2]
[384521927,1757449857635,-480.0,0.00014246,2]
[384521929,1757449857645,-480.0,0.00014246,2]
[384521931,1757449857655,-480.0,0.00014246,2]
[384521933,1757449857665,-498.41,0.00014246,2]
[384521935,1757449857674,-598.26,0.00014246,2]
[384521937,1757449857686,-623.72,0.00014246,2]
[384521939,1757449857696,-480.0,0.00014246,2]
[384521941,1757449857705,-575.75,0.00014246,2]
[384521943,1757449857714,-480.0,0.00014246,2]
[384521945,1757449857723,-480.0,0.00014246,2]
[384521947,1757449857732,-480.0,0.00014246,2]
[384521949,1757449857741,-17569.48,0.00014246,2]
[384521951,1757449857750,-357.18317995,0.00014246,2]
[384521953,1757449857760,-480.0,0.00014246,2]
[384521955,1757449857770,-480.0,0.00014246,2]
[384521957,1757449857779,-480.0,0.00014246,2]
[384521959,1757449857788,-480.0,0.00014246,2]
[384521961,1757449857797,-480.0,0.00014246,2]
[384521963,1757449857806,-480.0,0.00014246,2]
[384521965,1757449857815,-557.56,0.00014246,2]
[384521967,1757449857824,-480.0,0.00014246,2]
[384521969,1757449857834,-524.24,0.00014246,2]
[384521971,1757449857843,-480.0,0.00014246,2]
[384521973,1757449857852,-882.12,0.00014246,2]
[384521975,1757449857861,-480.0,0.00014246,2]
[384521977,1757449857870,-480.0,0.00014246,2]
[384521979,1757449857879,-822.5,0.00014246,2]
[384521981,1757449857889,-480.0,0.00014246,2]
[384521983,1757449857899,-480.0,0.00014246,2]
[384521985,1757449857908,-480.0,0.00014246,2]
[384521987,1757449857917,-480.0,0.00014246,2]
[384521989,1757449857926,-792.79,0.00014246,2]
[384521991,1757449857935,-480.0,0.00014246,2]
[384521993,1757449857945,-480.0,0.00014246,2]
[384521995,1757449857954,-480.0,0.00014246,2]
[384521997,1757449857963,-493.72,0.00014246,2]
[384521999,1757449857972,-480.0,0.00014246,2]
[384522001,1757449857981,-480.0,0.00014246,2]
[384522003,1757449857991,-480.0,0.00014246,2]
[384522005,1757449858000,-650.02,0.00014246,2]
[384522007,1757449858009,-480.0,0.00014246,2]
[384522009,1757449858019,-1561.18,0.00014246,2]
[384522011,1757449858028,-2198.51,0.00014246,2]
[384522013,1757449858037,-595.05,0.00014246,2]
[384522015,1757449858046,-490.79390019,0.00014246,2]
[384522017,1757449858056,-1554.96,0.00014246,2]
[384522019,1757449858065,-480.0,0.00014246,2]
[384522021,1757449858074,-480.0,0.00014246,2]
[384522023,1757449858083,-480.0,0.00014246,2]
[384522025,1757449858093,-634.32,0.00014246,2]
[384522027,1757449858102,-480.0,0.00014246,2]
[384522029,1757449858111,-480.0,0.00014246,2]
[384522031,1757449858122,-480.0,0.00014246,2]
[384522033,1757449858131,-646.8,0.00014246,2]
[384522035,1757449858139,-480.0,0.00014246,2]
[384522037,1757449858149,-578.16,0.00014246,2]
[384522039,1757449858158,-480.0,0.00014246,2]
[384522053,1757449858271,-480.0,0.00014246,2]
[384522055,1757449858283,-528.51,0.00014246,2]
[384522057,1757449858294,-1002.17,0.00014246,2]
[384522059,1757449858304,-480.0,0.00014246,2]
[384522061,1757449858314,-549.81000067,0.00014246,2]
[384522063,1757449858324,-480.0,0.00014246,2]
[384522065,1757449858333,-480.0,0.00014246,2]
[384522067,1757449858342,-480.0,0.00014246,2]
[384522069,1757449858351,-480.0,0.00014246,2]
[384522071,1757449858361,-480.0,0.00014246,2]
[384522073,1757449858370,-1772.11,0.00014246,2]
[384522075,1757449858379,-480.0,0.00014246,2]
[384522077,1757449858388,-480.0,0.00014246,2]
[384522079,1757449858397,-480.0,0.00014246,2]
[384522081,1757449858406,-480.0,0.00014246,2]
[384522083,1757449858416,-1022.54,0.00014246,2]
[384522085,1757449858425,-486.87,0.00014246,2]
[384522087,1757449858434,-480.0,0.00014246,2]
[384522089,1757449858444,-480.0,0.00014246,2]
[384522091,1757449858455,-2034.54,0.00014246,2]
[384522093,1757449858464,-480.0,0.00014246,2]
[384522095,1757449858474,-480.0,0.00014246,2]
[384522097,1757449858483,-480.0,0.00014246,2]
[384522099,1757449858492,-480.0,0.00014246,2]
[384522101,1757449858501,-698.54,0.00014246,2]
[384522103,1757449858510,-811.59,0.00014246,2]
[384522105,1757449858519,-480.0,0.00014246,2]
[384522107,1757449858529,-480.0,0.00014246,2]
[384522109,1757449858538,-480.0,0.00014246,2]
[384522111,1757449858547,-480.0,0.00014246,2]
[384522113,1757449858556,-3020.48,0.00014246,2]
[384522115,1757449858565,-263.14616992,0.00014246,2]
[384522117,1757449858575,-480.0,0.00014246,2]
[384522119,1757449858584,-500.39823134,0.00014273,2]
[384522121,1757449858593,-500.0,0.00014273,2]
[384522123,1757449858602,-153.631,0.00014273,2]
[384522125,1757449858612,-151.0,0.000143,2]
[384522127,1757449858621,-976.0,0.00014349,2]
[384522129,1757449858630,-634.0,0.00014349,2]
[384522131,1757449858639,-2154.0,0.00014349,2]
[384522133,1757449858649,-151.0,0.000144,2]
[384522135,1757449858658,-18092.67567671,0.00014406,2]
[384522137,1757449858667,-7601.81708884,0.00014421,2]
[384522139,1757449858677,-500.0,0.00014475,2]
[384522141,1757449858686,-1219.89,0.00014514,2]
[384522143,1757449858696,-480.0,0.00014514,2]
[384522145,1757449858705,-480.0,0.0001452,2]
[384522147,1757449858715,-480.0,0.0001452,2]
[384522149,1757449858723,-480.0,0.0001452,2]
[384522151,1757449858733,-480.0,0.0001452,2]
[384522153,1757449858741,-151.0,0.0001452,2]
[384522155,1757449858751,-480.0,0.0001452,2]
[384522157,1757449858760,-455.57201186,0.0001452,2]
[384522159,1757449858769,-480.0,0.0001452,2]
[384522161,1757449858778,-480.0,0.0001452,2]
[384522163,1757449858788,-480.0,0.0001452,2]
[384522165,1757449858797,-480.0,0.0001452,2]
[384522167,1757449858807,-546.82993872,0.0001452,2]
[384522169,1757449858815,-430.14399858,0.0001452,2]
[384522170,1757449858825,-480.0,0.0001452,2]
[384522173,1757449858834,-480.0,0.0001452,2]
[384522175,1757449858844,-480.0,0.0001452,2]
[384522177,1757449858853,-480.0,0.0001452,2]
[384522179,1757449858862,-480.0,0.0001452,2]
[384522181,1757449858871,-480.0,0.0001452,2]